bitfinex/quotes_SOLUSD_20260305
["timestamp","ask_amount","ask_price","bid_price","bid_amount"]
[1772741789215,11.21629503,89.156,89.069,0.5]
[1772741789216,39.25703261,89.156,89.069,0.5]
[1772741789408,11.41174289,89.15,89.083,0.5]
[1772741789819,39.26011507,89.149,89.088,0.5]
[1772741790393,11.41174289,89.14,89.088,0.5]
[1772741790718,11.41174289,89.13,89.088,0.5]
[1772741791402,11.41174289,89.14,89.088,0.5]
[1772741791601,39.26451945,89.139,89.09,0.5]
[1772741793628,95.3566901,89.139,89.09,0.5]
[1772741794202,95.3566901,89.139,89.092,0.5]
[1772741795212,11.41174289,89.13,89.092,0.5]
[1772741795410,11.41174289,89.11,89.069,0.5]
[1772741795727,39.2777385,89.109,89.069,0.5]
[1772741796500,39.2777385,89.109,89.071,0.5]
[1772741797707,148.8785282,89.13,89.074,0.5]
[1772741797708,28.05195291,89.121,89.074,0.5]
[1772741797905,11.41174289,89.11,89.067,11.22744816]
[1772741798109,11.41174289,89.11,89.068,0.5]
[1772741798526,11.41174289,89.12,89.068,0.5]
[1772741798827,11.41174289,89.11,89.068,0.5]
[1772741799907,39.2777385,89.109,89.07,0.5]
[1772741800518,11.222211,89.109,89.07,0.5]
[1772741800943,28.05249832,89.119,89.07,0.78432314]
[1772741801145,39.26917662,89.129,89.071,0.5]
[1772741801823,11.2196928,89.129,89.071,0.5]
[1772741802025,39.26892481,89.129,89.074,0.5]
[1772741804121,39.26892481,89.129,89.077,0.5]
[1772741804427,11.2196928,89.129,89.077,0.5]
[1772741805548,115.21966742,89.13,89.077,0.5]
[1772741805738,143.26858473,89.13,89.077,0.5]
[1772741806146,143.26858473,89.13,89.08,0.5]
[1772741808057,104.0,89.13,89.085,0.5]
[1772741808256,39.2557117,89.159,89.09,0.5]
[1772741808454,11.41174289,89.15,89.09,0.5]
[1772741808639,39.2557117,89.159,89.09,0.5]
[1772741810451,39.2557117,89.159,89.092,0.78432314]
[1772741810632,39.2557117,89.159,89.093,0.5]
[1772741812951,39.2557117,89.159,89.091,39.28567419]
[1772741812952,56.07376528,89.169,89.096,0.5]
[1772741815262,11.41174289,89.14,89.099,0.5]
[1772741816762,11.41174289,89.15,89.099,0.5]
[1772741816961,104.0,89.168,89.099,0.5]
[1772741816962,11.41174289,89.16,89.099,0.5]
[1772741817164,39.2557117,89.159,89.102,0.5]
[1772741818366,11.41174289,89.15,89.102,0.5]
[1772741820462,11.39148789,89.15,89.104,0.5]
[1772741820870,28.03979407,89.159,89.105,0.5]
[1772741821869,28.02690582,89.2,89.108,0.5]
[1772741822053,28.02690582,89.2,89.12,0.5]
[1772741822365,28.02690582,89.2,89.129,0.5]
[1772741822666,28.02690582,89.2,89.132,0.5]
[1772741822868,11.20975697,89.208,89.139,0.5]
[1772741823266,39.2341494,89.208,89.139,0.5]
[1772741823644,11.39148789,89.2,89.139,0.5]
[1772741823850,104.0,89.209,89.139,0.5]
[1772741824077,104.0,89.209,89.13,189.94762992]
[1772741824078,7.12299912,89.255,89.151,3.69383402]
[1772741824263,7.12299912,89.255,89.178,3.69383402]
[1772741824453,11.20493638,89.247,89.191,0.5]
[1772741824870,11.20598848,89.238,89.194,0.5]
[1772741825071,11.20530977,89.244,89.194,0.5]
[1772741825459,11.20598848,89.238,89.194,0.5]
[1772741825777,7.12299912,89.255,89.193,0.5]
[1772741825947,4.82477569,89.296,89.194,4.93804888]
[1772741826156,0.49123799,89.311,89.208,3.69383402]
[1772741826377,5.84570178,89.289,89.222,4.96693726]
[1772741826551,0.49123799,89.293,89.246,0.4962032]
[1772741826753,0.49123799,89.293,89.248,0.28432314]
[1772741826957,0.49123799,89.289,89.248,0.28432314]
[1772741827157,0.49123799,89.279,89.239,11.20585354]
[1772741827646,0.49123799,89.279,89.233,0.28432314]
[1772741828446,0.49123799,89.279,89.224,0.28432314]
[1772741829052,0.49123799,89.277,89.226,0.28432314]
[1772741829573,0.49123799,89.269,89.225,11.20762118]
[1772741830050,0.49123799,89.269,89.219,11.70449616]
[1772741830251,0.49123799,89.269,89.219,11.20829296]
[1772741830460,0.49123799,89.269,89.214,0.14216157]
[1772741830676,0.49123799,89.259,89.214,0.28432314]
[1772741831459,11.39148789,89.27,89.217,0.4962032]
[1772741831460,0.49123799,89.257,89.217,0.4962032]
[1772741831863,0.49123799,89.257,89.216,0.28432314]
[1772741832061,0.49123799,89.257,89.215,11.20887743]
[1772741833070,0.49123799,89.249,89.204,11.21023354]
[1772741833378,0.49123799,89.227,89.186,11.2124423]
[1772741833581,0.49123799,89.227,89.177,0.4962032]
[1772741833758,0.49123799,89.219,89.178,11.213528]
[1772741833960,0.49123799,89.219,89.177,0.4962032]
[1772741834155,39.22535526,89.228,89.169,0.4636235]
[1772741834156,0.49123799,89.199,89.169,0.4636235]
[1772741834360,0.41276353,89.189,89.145,0.4962032]
[1772741834578,0.41276353,89.179,89.145,0.4962032]
[1772741834971,0.41276353,89.179,89.135,0.4962032]
[1772741835281,11.80425142,89.17,89.135,0.4962032]
[1772741835486,11.6275491,89.168,89.125,0.78052634]
[1772741835686,11.6275491,89.168,89.126,0.4962032]
[1772741836687,11.21478557,89.168,89.126,0.4962032]
[1772741837486,0.41276353,89.175,89.129,0.4962032]
[1772741837684,0.41276353,89.159,89.121,11.22058306]
[1772741837856,0.41276353,89.159,89.118,0.4962032]
[1772741838193,0.41276353,89.159,89.094,0.4962032]
[1772741838369,0.41276353,89.149,89.094,0.4962032]
[1772741839475,11.21730156,89.148,89.097,0.4962032]
[1772741839672,11.63006509,89.148,89.097,0.4962032]
[1772741840667,0.41276353,89.147,89.099,0.4962032]
[1772741841163,0.41276353,89.139,89.088,0.4962032]
[1772741841365,0.41276353,89.119,89.079,11.22599041]
[1772741841568,0.41276353,89.119,89.08,0.4962032]
[1772741841777,0.41276353,89.119,89.066,0.4962032]
[1772741842777,0.41276353,89.117,89.067,11.22750289]
[1772741842985,0.41276353,89.117,89.069,0.4962032]
[1772741844768,11.80425142,89.11,89.069,0.4962032]
[1772741844968,11.222211,89.109,89.071,0.4962032]
[1772741845177,11.222211,89.109,89.068,0.14216157]
[1772741845178,0.41276353,89.108,89.068,0.14216157]
[1772741845386,0.41276353,89.099,89.061,0.4962032]
[1772741845690,0.41276353,89.099,89.052,0.4962032]
[1772741846299,39.69050203,89.109,89.053,0.4962032]
[1772741846593,11.39148789,89.1,89.053,0.4962032]
[1772741846784,0.41276353,89.108,89.053,0.4962032]
[1772741847387,0.41276353,89.099,89.055,0.4962032]
[1772741848577,0.41276353,89.099,89.045,1.08394949]
[1772741848782,0.41276353,89.089,89.046,11.2301507]
[1772741849177,0.41276353,89.089,89.047,0.46145298]
[1772741849480,11.22485632,89.088,89.049,0.46145298]
[1772741850493,11.22372245,89.097,89.049,0.46145298]
[1772741851079,0.41276353,89.089,89.049,0.46145298]
[1772741851802,11.22485632,89.088,89.051,0.46586154]
[1772741852005,0.41276353,89.087,89.051,0.46586154]
[1772741852681,0.41276353,89.087,89.048,11.22989126]
[1772741853700,0.41276353,89.085,89.044,0.46586154]
[1772741854000,39.28787912,89.086,89.034,0.46586154]
[1772741854001,0.41276353,89.079,89.034,0.46586154]
[1772741855684,0.41276353,89.079,89.035,39.31038354]
[1772741855890,0.41276353,89.088,89.037,0.46586154]
[1772741857382,11.22473032,89.089,89.037,0.46586154]
[1772741857598,11.22300502,89.103,89.046,0.46586154]
[1772741857786,7.00380042,89.105,89.063,3.69383402]
[1772741857995,11.22044577,89.124,89.064,0.46586154]
[1772741859309,11.21818243,89.141,89.075,0.46586154]
[1772741859488,0.41276353,89.14,89.083,0.46586154]
[1772741859810,0.41276353,89.14,89.079,0.28432314]
[1772741859811,0.41276353,89.14,89.086,0.46586154]
[1772741860110,11.21843413,89.139,89.086,0.46586154]
[1772741860518,0.41276353,89.138,89.086,0.46586154]
[1772741861818,0.41276353,89.138,89.064,4.82477569]
[1772741861819,0.41276353,89.136,89.088,0.28432314]
[1772741861995,0.41276353,89.136,89.089,0.46586154]
[1772741862600,0.41276353,89.129,89.089,0.46586154]
[1772741864227,0.41276353,89.149,89.091,0.46586154]
[1772741864423,0.41276353,89.148,89.091,0.46586154]
[1772741865320,11.39148789,89.14,89.091,0.46586154]
[1772741865501,0.41276353,89.139,89.091,0.46586154]
[1772741866720,0.41276353,89.137,89.092,11.22435235]
[1772741867122,0.41276353,89.119,89.079,0.46586154]
[1772741867310,0.41276353,89.119,89.075,0.46586154]
[1772741868419,0.41276353,89.109,89.063,0.46586154]
[1772741868796,0.41276353,89.107,89.065,0.46586154]
[1772741869116,11.39148789,89.12,89.065,0.46586154]
[1772741869117,11.22082585,89.12,89.066,0.46586154]
[1772741869298,0.41276353,89.119,89.066,0.46586154]
[1772741869497,0.41276353,89.109,89.066,0.46586154]
[1772741871025,11.22233693,89.108,89.069,0.46586154]
[1772741871222,11.63510046,89.108,89.069,0.46586154]
[1772741871424,0.28432314,89.141,89.027,3.99327134]
[1772741871425,0.14216157,89.131,89.063,0.46586154]
[1772741871615,0.41276353,89.151,89.069,0.46586154]
[1772741871919,0.41276353,89.143,89.092,0.46586154]
[1772741872098,11.218146,89.142,89.092,0.46586154]
[1772741873003,11.218146,89.142,89.095,0.46586154]
[1772741874009,0.41276353,89.165,89.095,0.46586154]
[1772741874215,0.41276353,89.164,89.095,0.46586154]
[1772741875028,0.41276353,89.162,89.098,0.46586154]
[1772741875232,0.73400002,89.182,89.104,0.46586154]
[1772741875445,0.73400002,89.182,89.1,0.28432314]
[1772741875446,11.21315078,89.181,89.123,4.82477569]
[1772741875752,11.21315078,89.181,89.111,4.82477569]
[1772741875753,1.14676355,89.182,89.125,0.46586154]
[1772741876529,0.73400002,89.182,89.135,0.46586154]
[1772741876730,0.41276353,89.214,89.143,3.69383402]
[1772741877051,0.41276353,89.212,89.149,0.46586154]
[1772741877451,0.41276353,89.209,89.149,0.46586154]
[1772741878951,0.41276353,89.207,89.152,0.46586154]
[1772741880170,0.41276353,89.199,89.152,0.46586154]
[1772741880865,0.41276353,89.207,89.154,0.45982126]
[1772741881442,0.41276353,89.189,89.148,11.21718262]
[1772741881660,0.41276353,89.189,89.146,11.21755322]
[1772741882182,0.41276353,89.169,89.117,0.45982126]
[1772741882347,0.41276353,89.159,89.117,0.45982126]
[1772741882678,0.41276353,89.159,89.106,28.51629332]
[1772741882856,0.41276353,89.157,89.106,11.68241008]
[1772741883164,39.25615199,89.158,89.097,3.99227982]
[1772741883165,0.41276353,89.139,89.097,3.99227982]
[1772741883350,0.41276353,89.139,89.101,11.2231348]
[1772741883547,11.37699693,89.15,89.102,0.45982126]
[1772741883749,0.41276353,89.149,89.103,0.45982126]
[1772741884255,0.41276353,89.187,89.103,0.45982126]
[1772741884452,0.41276353,89.187,89.123,3.69383402]
[1772741884654,11.21252214,89.186,89.127,0.45982126]
[1772741885068,0.41276353,89.186,89.13,0.45982126]
[1772741886452,0.41276353,89.222,89.132,0.28432314]
[1772741886663,0.41276353,89.222,89.144,4.82477569]
[1772741886867,0.41276353,89.222,89.134,4.82477569]
[1772741886868,0.41276353,89.217,89.157,0.45982126]
[1772741887065,0.41276353,89.217,89.16,0.45982126]
[1772741887276,0.41276353,89.218,89.16,0.45982126]
[1772741887445,11.62126405,89.218,89.16,0.45982126]
[1772741888273,0.41276353,89.217,89.16,0.45982126]
[1772741889671,0.28432314,89.245,89.155,3.69383402]
[1772741889672,0.41276353,89.229,89.166,0.45982126]
[1772741889881,18.24555497,89.219,89.166,0.45982126]
[1772741890751,0.41276353,89.218,89.166,0.45982126]
[1772741891187,0.41276353,89.199,89.154,0.45982126]
[1772741891551,0.41276353,89.189,89.145,11.21767906]
[1772741891958,0.41276353,89.189,89.146,0.45982126]
[1772741893580,0.41276353,89.159,89.117,11.68102484]
[1772741894052,0.41276353,89.159,89.117,39.7340338]
[1772741894675,0.41276353,89.159,89.117,11.68102484]
[1772741894866,0.41276353,89.159,89.118,0.45982126]
[1772741895075,0.41276353,89.169,89.118,0.45982126]
[1772741895385,0.41276353,89.169,89.119,0.45982126]
[1772741895566,0.41276353,89.167,89.122,0.45982126]
[1772741895952,11.37699693,89.16,89.122,0.45982126]
[1772741896159,0.41276353,89.159,89.122,0.45982126]
[1772741898379,0.41276353,89.157,89.123,11.22044814]
[1772741898676,11.21528737,89.165,89.123,0.45982126]
[1772741898873,0.41276353,89.169,89.123,0.45982126]
[1772741899175,0.41276353,89.195,89.127,0.45982126]
[1772741900052,11.21058505,89.202,89.134,0.45982126]
[1772741900252,28.4341692,89.218,89.147,0.45982126]
[1772741900467,0.41276353,89.218,89.155,0.45982126]
[1772741900849,0.41276353,89.227,89.155,0.45982126]
[1772741901282,11.20711876,89.229,89.166,0.45982126]
[1772741901668,0.41276353,89.209,89.166,0.45982126]
[1772741901978,0.41276353,89.249,89.176,0.45982126]
[1772741902352,0.41276353,89.247,89.181,0.45982126]
[1772741902553,28.42043304,89.262,89.192,0.45982126]
[1772741902776,11.2037286,89.256,89.195,0.45982126]
[1772741903766,0.28432314,89.285,89.202,4.82477569]
[1772741903767,11.61285313,89.285,89.202,4.82477569]
[1772741903964,11.61285313,89.285,89.214,0.60198283]
[1772741904165,11.61285313,89.285,89.22,8.51860971]
[1772741904361,0.41276353,89.294,89.228,0.45982126]
[1772741904678,0.41276353,89.294,89.229,0.45982126]
[1772741905764,11.19908615,89.293,89.23,39.22447606]
[1772741905968,11.61184968,89.293,89.232,0.45982126]
[1772741906167,0.41276353,89.279,89.232,0.45982126]
[1772741906689,0.41276353,89.289,89.232,0.45982126]
[1772741907179,11.47699693,89.3,89.235,0.45982126]
[1772741907180,11.19849861,89.298,89.235,0.45982126]
[1772741907879,11.19849861,89.298,89.237,0.7441444]
[1772741908063,0.41276353,89.297,89.238,0.45982126]
[1772741909486,0.41276353,89.289,89.238,0.45982126]
[1772741909867,0.41276353,89.279,89.239,39.22052016]
[1772741910069,11.20096776,89.278,89.24,0.28432314]
[1772741910759,39.20338716,89.278,89.24,0.45635008]
[1772741910966,0.41276353,89.277,89.24,0.45635008]
[1772741911884,0.41276353,89.277,89.239,11.2058629]
[1772741912071,0.41276353,89.259,89.208,0.45635008]
[1772741912460,0.41276353,89.259,89.209,0.45635008]
[1772741912660,11.37699693,89.24,89.202,11.21049363]
[1772741912877,11.37699693,89.25,89.205,0.45635008]
[1772741913081,0.41276353,89.249,89.205,0.45635008]
[1772741914184,11.20473287,89.248,89.207,0.45635008]
[1772741914688,11.6174964,89.248,89.207,0.45635008]
[1772741915182,0.41276353,89.247,89.207,0.45635008]
[1772741915968,0.41276353,89.247,89.205,11.21012687]
[1772741916287,0.41276353,89.245,89.205,11.66647695]
[1772741916472,0.41276353,89.245,89.206,0.45635008]
[1772741918178,0.41276353,89.243,89.207,11.20988263]
[1772741919697,11.37699693,89.24,89.206,0.45635008]
[1772741919876,0.41276353,89.239,89.206,0.45635008]
[1772741920081,11.20598848,89.238,89.206,0.45635008]
[1772741920273,11.20598848,89.238,89.207,11.20988263]
[1772741920472,11.20598848,89.238,89.206,0.45635008]
[1772741920787,11.20598848,89.238,89.207,11.20988263]
[1772741921087,11.20598848,89.238,89.208,0.45635008]
[1772741921297,44.78802096,89.31,89.211,0.45635008]
[1772741921298,0.41276353,89.281,89.211,0.45635008]
[1772741921471,44.88293917,89.32,89.226,0.45635008]
[1772741921472,11.20016518,89.285,89.226,0.45635008]
[1772741921667,28.40959596,89.296,89.233,4.82477569]
[1772741921668,11.19883532,89.295,89.233,4.82477569]
[1772741921863,0.1,89.3,89.246,0.45635008]
[1772741922069,0.1,89.3,89.25,0.45635008]
[1772741923393,0.1,89.3,89.253,0.45635008]
[1772741925379,0.1,89.3,89.256,0.45635008]
[1772741927579,0.1,89.3,89.259,0.45635008]
[1772741929588,0.1,89.3,89.262,0.45635008]
[1772741930983,0.1,89.3,89.265,0.45635008]
[1772741932495,0.1,89.3,89.268,0.45635008]
[1772741934492,0.1,89.3,89.271,0.45635008]
[1772741935889,0.1,89.3,89.273,0.45635008]
[1772741936593,6.9137427,89.319,89.273,0.45635008]
[1772741936594,6.9137427,89.319,89.275,0.45635008]
[1772741936793,6.9137427,89.319,89.276,0.45635008]
[1772741937107,0.1,89.32,89.276,0.45635008]
[1772741938282,0.1,89.32,89.275,0.28432314]
[1772741938283,0.1,89.34,89.279,0.45635008]
[1772741938590,0.1,89.34,89.277,189.6428139]
[1772741938591,0.1,89.34,89.297,0.45635008]
[1772741939094,11.19331982,89.339,89.297,0.45635008]
[1772741939485,0.1,89.34,89.297,0.45635008]
[1772741940301,0.1,89.34,89.3,0.48743302]
[1772741941002,0.1,89.34,89.305,0.48743302]
[1772741941305,0.1,89.34,89.299,0.14216157]
[1772741941306,11.19006322,89.365,89.306,0.48743302]
[1772741941683,0.46226511,89.38,89.309,0.48743302]
[1772741941880,0.46226511,89.379,89.309,0.48743302]
[1772741942087,0.46226511,89.359,89.309,0.48743302]
[1772741942282,11.37699693,89.36,89.309,0.48743302]
[1772741942283,0.46226511,89.357,89.309,0.48743302]
[1772741942496,0.46226511,89.349,89.31,11.19695442]
[1772741942681,0.46226511,89.349,89.311,0.48743302]
[1772741943009,0.46226511,89.349,89.306,11.19741475]
[1772741943394,0.46226511,89.339,89.289,0.48743302]
[1772741944490,0.46226511,89.337,89.29,11.68689544]
[1772741944696,0.46226511,89.319,89.258,0.48743302]
[1772741944899,0.46226511,89.309,89.258,0.48743302]
[1772741946321,0.46226511,89.299,89.258,0.48743302]
[1772741946613,11.6607242,89.298,89.259,11.20335204]
[1772741946923,0.46226511,89.297,89.26,0.48743302]
[1772741948093,0.46226511,89.295,89.252,0.28432314]
[1772741948307,0.46226511,89.295,89.253,0.48743302]
[1772741948715,11.1987099,89.296,89.253,0.48743302]
[1772741948716,0.46226511,89.289,89.253,0.48743302]
[1772741950226,11.19963244,89.289,89.255,0.48743302]
[1772741950399,11.19886621,89.295,89.255,0.48743302]
[1772741951211,0.46226511,89.298,89.255,0.48743302]
[1772741952118,0.46226511,89.298,89.256,39.2130501]
[1772741952295,11.19808249,89.302,89.257,0.48743302]
[1772741952903,11.6603476,89.302,89.257,0.48743302]
[1772741953498,0.46226511,89.301,89.257,0.48743302]
[1772741954407,0.46226511,89.299,89.259,0.48743302]
[1772741955705,11.19764711,89.305,89.259,0.48743302]
[1772741955905,0.46226511,89.304,89.259,0.48743302]
[1772741956224,0.46226511,89.299,89.259,0.48743302]
[1772741957415,0.46226511,89.297,89.26,11.20322652]
[1772741957604,0.46226511,89.297,89.261,0.48743302]
[1772741959920,11.1987099,89.296,89.262,11.20297551]
[1772741960099,0.46226511,89.289,89.243,11.20536064]
[1772741960419,11.1987099,89.296,89.245,0.48743302]
[1772741961804,104.0,89.307,89.248,0.48743302]
[1772741962006,11.19745593,89.306,89.251,0.48743302]
[1772741962202,0.46226511,89.305,89.251,0.48743302]
[1772741964002,0.46226511,89.305,89.25,0.28432314]
[1772741964003,0.46226511,89.303,89.254,0.48743302]
[1772741964423,104.0,89.307,89.254,0.48743302]
[1772741964605,11.19736117,89.307,89.254,0.48743302]
[1772741965425,11.65962628,89.307,89.254,0.48743302]
[1772741965723,0.46226511,89.306,89.254,0.48743302]
[1772741966405,0.46226511,89.304,89.257,0.48743302]
[1772741968601,0.49049374,89.302,89.259,0.45779883]
[1772741970008,11.19733583,89.307,89.26,0.46787253]
[1772741970232,11.19570085,89.32,89.26,0.46787253]
[1772741970732,0.48495022,89.319,89.263,0.46787253]
[1772741972726,0.48495022,89.309,89.263,0.46787253]
[1772741972933,0.48495022,89.307,89.253,0.46787253]
[1772741973109,0.48495022,89.299,89.254,11.20397965]
[1772741973308,0.48495022,89.299,89.255,0.46787253]
[1772741973622,39.67516833,89.308,89.255,0.46787253]
[1772741973824,0.48495022,89.307,89.255,0.46787253]
[1772741974010,0.48495022,89.299,89.255,0.46787253]
[1772741975821,11.68328821,89.299,89.257,0.46787253]
[1772741976014,0.48495022,89.319,89.258,0.46787253]
[1772741976332,0.48495022,89.318,89.258,0.46787253]
[1772741976520,104.0,89.333,89.259,0.46787253]
[1772741976827,11.34053327,89.33,89.259,0.46787253]
[1772741978113,39.18100504,89.329,89.262,0.46787253]
[1772741978318,11.34053327,89.32,89.262,0.46787253]
[1772741978513,0.12781331,89.319,89.262,0.46787253]
[1772741980628,0.12781331,89.299,89.263,11.20285]
[1772741980830,0.12781331,89.299,89.25,28.01094626]
[1772741980831,0.12781331,89.299,89.252,0.46787253]
[1772741982414,3.69383402,89.329,89.252,0.46787253]
[1772741982614,39.19416789,89.299,89.254,0.5]
[1772741984539,0.09196826,89.298,89.254,0.5]
[1772741985131,0.09196826,89.298,89.22,3.69383402]
[1772741985132,11.19833368,89.299,89.257,0.5]
[1772741986033,55.9716526,89.331,89.257,0.5]
[1772741986034,11.19733055,89.307,89.257,0.5]
[1772741986339,0.08652679,89.316,89.257,0.5]
[1772741986340,11.19655989,89.314,89.257,0.5]
[1772741987036,0.08652679,89.316,89.258,39.21217144]
[1772741987237,0.08652679,89.316,89.26,0.5]
[1772741987864,11.34053327,89.32,89.261,0.54326339]
[1772741988042,11.34053327,89.31,89.261,0.54326339]
[1772741989038,11.34053327,89.32,89.261,0.54326339]
[1772741989338,39.18539167,89.319,89.263,0.54326339]
[1772741989640,0.47430664,89.318,89.263,0.54326339]
[1772741990140,0.47430664,89.318,89.264,0.54326339]
[1772741990524,0.47039433,89.326,89.268,0.54326339]
[1772741990717,0.47039433,89.349,89.27,0.54326339]
[1772741991224,0.46649438,89.347,89.273,0.54326339]
[1772741992840,0.46260675,89.345,89.276,0.54326339]
[1772741993135,0.45873138,89.339,89.276,0.54326339]
[1772741993741,0.45873138,89.329,89.276,0.54326339]
[1772741994822,95.13576432,89.346,89.269,11.20209703]
[1772741994823,0.45101729,89.309,89.269,11.20209703]
[1772741995016,0.45101729,89.309,89.229,44.82835837]
[1772741995017,0.45101729,89.299,89.238,0.54326339]
[1772741995245,0.45101729,89.289,89.238,0.54326339]
[1772741995937,0.45101729,89.289,89.231,39.22403648]
[1772741995938,0.45101729,89.279,89.231,39.22403648]
[1772741996137,0.45101729,89.279,89.232,0.54326339]
[1772741996339,89.51850234,89.367,89.232,0.54326339]
[1772741996543,11.34053327,89.28,89.232,0.54326339]
[1772741996745,11.34053327,89.29,89.232,0.54326339]
[1772741996945,11.19958785,89.289,89.235,0.76877204]
[1772741998343,0.48495022,89.279,89.235,0.76877204]
[1772741999753,0.48495022,89.279,89.236,39.22183871]
[1772742000055,11.19997284,89.286,89.241,0.95543525]
[1772742000257,0.58507657,89.285,89.242,0.95543525]
[1772742000550,11.19997284,89.286,89.236,11.20623963]
[1772742000551,0.58507657,89.279,89.236,11.20623963]
[1772742000744,11.19997284,89.286,89.236,11.20623963]
[1772742000745,0.58507657,89.269,89.236,11.20623963]
[1772742000946,0.58507657,89.269,89.236,12.16167488]
[1772742001457,0.58507657,89.269,89.236,11.20623963]
[1772742001952,59.68238318,89.304,89.207,11.20988263]
[1772742001953,0.57446319,89.259,89.207,11.20988263]
[1772742002251,11.20222252,89.268,89.209,0.95543525]
[1772742002252,0.57446319,89.249,89.209,0.95543525]
[1772742002450,0.57446319,89.249,89.211,0.95543525]
[1772742002871,0.57446319,89.262,89.211,0.95543525]
[1772742003051,0.56918156,89.259,89.211,0.95543525]
[1772742003935,0.56391656,89.257,89.214,0.95543525]
[1772742004152,44.78169537,89.323,89.214,0.95543525]
[1772742004153,11.20237523,89.267,89.214,0.95543525]
[1772742004331,0.56391656,89.298,89.22,5.78021094]
[1772742004654,11.19833368,89.299,89.212,184.95269694]
[1772742004655,0.56391656,89.289,89.229,1.09759682]
[1772742004834,0.56391656,89.279,89.229,1.09759682]
[1772742005152,39.19416789,89.299,89.229,1.09759682]
[1772742005153,0.55866812,89.292,89.229,1.09759682]
[1772742005330,11.19833368,89.299,89.229,1.09759682]
[1772742005533,0.55866812,89.298,89.229,1.09759682]
[1772742006255,0.5534362,89.296,89.232,0.95543525]
[1772742007446,0.54822073,89.279,89.232,0.95543525]
[1772742008152,11.20096776,89.278,89.233,39.22315734]
[1772742008348,0.54302164,89.277,89.234,0.28432314]
[1772742008545,0.54302164,89.277,89.235,0.95543525]
[1772742008952,0.53783888,89.259,89.227,0.28432314]
[1772742009148,0.53783888,89.259,89.226,11.2073866]
[1772742009844,0.53783888,89.259,89.227,0.28432314]
[1772742010158,0.53783888,89.259,89.226,11.2073866]
[1772742010539,11.73614995,89.258,89.227,0.28432314]
[1772742010739,0.5326724,89.257,89.226,11.2073866]
[1772742012067,0.522388,89.255,89.217,1.23975839]
[1772742012774,0.522388,89.249,89.217,0.28432314]
[1772742013376,0.51726997,89.259,89.218,0.95543525]
[1772742013546,11.72091775,89.257,89.218,0.95543525]
[1772742013965,0.51216797,89.254,89.22,0.28432314]
[1772742014657,0.51216797,89.249,89.22,0.28432314]
[1772742015045,11.71093608,89.255,89.221,0.95543525]
[1772742015368,0.50708196,89.254,89.221,0.95543525]
[1772742016064,0.50201186,89.252,89.222,0.28432314]
[1772742017470,0.49695763,89.249,89.222,0.28432314]
[1772742017844,11.20410518,89.253,89.223,0.95543525]
[1772742018248,0.49191921,89.254,89.224,11.20774679]
[1772742018467,11.20209703,89.269,89.226,0.95543525]
[1772742018669,0.49191921,89.269,89.226,0.95543525]
[1772742019552,11.20209703,89.269,89.226,0.95543525]
[1772742019757,11.3658309,89.25,89.215,11.20887743]
[1772742019963,0.48689653,89.249,89.215,11.20887743]
[1772742020164,0.48689653,89.249,89.216,0.28432314]
[1772742020467,0.48689653,89.249,89.216,0.14216157]
[1772742020659,0.48188954,89.247,89.215,11.20887743]
[1772742020861,0.47689819,89.239,89.211,0.28432314]
[1772742021071,0.47689819,89.239,89.206,11.21000829]
[1772742021770,11.20473287,89.248,89.207,0.95543525]
[1772742021966,28.00886548,89.258,89.207,0.95543525]
[1772742021967,11.2041151,89.253,89.208,0.28432314]
[1772742022267,11.2041151,89.253,89.211,1.09759682]
[1772742022469,0.47192242,89.271,89.213,0.95543525]
[1772742022661,11.20226496,89.268,89.215,1.09759682]
[1772742022855,11.66922714,89.268,89.217,0.95543525]
[1772742023046,11.66922714,89.268,89.218,1.09759682]
[1772742023251,11.66922714,89.268,89.22,0.95543525]
[1772742023571,0.46696218,89.267,89.221,1.23975839]
[1772742023766,0.46696218,89.267,89.223,1.09759682]
[1772742023967,0.46696218,89.267,89.224,0.95543525]
[1772742024647,11.2024735,89.266,89.226,0.28432314]
[1772742025058,0.4620174,89.265,89.227,0.95543525]
[1772742025254,0.4620174,89.265,89.225,11.20762118]
[1772742025461,0.45708803,89.239,89.197,0.95543525]
[1772742025667,0.45708803,89.239,89.2,0.95543525]
[1772742025869,0.45708803,89.239,89.203,0.95543525]
[1772742026179,0.45217402,89.239,89.203,0.95543525]
[1772742026474,0.45217402,89.248,89.203,0.95543525]
[1772742026964,0.44727531,89.246,89.205,0.95543525]
[1772742027475,11.3658309,89.24,89.205,0.95543525]
[1772742028172,0.44239184,89.229,89.198,11.21095864]
[1772742028981,11.64476793,89.228,89.19,0.92031978]
[1772742029273,0.43752357,89.227,89.192,0.92031978]
[1772742029462,0.43752357,89.227,89.192,1.06248135]
[1772742031181,11.20749557,89.226,89.194,0.90927077]
[1772742031359,11.3658309,89.24,89.195,0.90927077]
[1772742031661,0.42783238,89.269,89.198,0.90927077]
[1772742031862,0.42300936,89.259,89.2,0.90927077]
[1772742032074,0.42300936,89.249,89.201,1.05143234]